Cogmind - Beta 10 X2 @@@ ROGUE MODE // 2020.07.05 @ 17:04:01 // Winter2019/RPGLIKE Player: PhenomPhear Result: Destroyed by G-34 Mercenary with Small Laser Performance ------------- Evolutions (0) 0 Regions Visited (1) 200 Robots Destroyed (20) 100 Value Destroyed (499) 499 Prototype IDs (0) 0 Alien Tech Used (0) 0 Bonus (0) 0 TOTAL SCORE: 799 Bonus ------- None Cogmind --------- Core Integrity 0/600 Matter 316/500 Energy 250/250 System Corruption 0% Temperature Cool (6) Movement Treading (160) Location -10/Materials Parts ------- > --- POWER (1) -------- Ion Engine > --- PROPULSION (2) --- Light Treads Light Treads > --- UTILITY (4) ------ Heat Sink High-capacity Matter Pod Utility Shielding > --- WEAPON (2) ------- Assault Rifle Light Assault Rifle > --- INVENTORY (2) ---- Ion Engine Mining Laser Peak State ------------ > --- POWER ------------ Ion Engine > --- PROPULSION ------- Light Treads Light Treads > --- UTILITY ---------- Heat Sink High-capacity Matter Pod Utility Shielding > --- WEAPON ----------- Assault Rifle Light Assault Rifle > --- INVENTORY -------- Mining Laser [Rating: 8] Favorites ----------- Power Ion Engine Engine Ion Engine Propulsion Light Treads Treads Light Treads Utility Heat Sink Device Heat Sink Storage High-capacity Matter Pod Protection Utility Shielding Weapon Light Assault Rifle Ballistic Gun Light Assault Rifle Build | -11 -10 ------- Run | Scr Mat Slots Evolved 5 | 3 2 Power . | . . Propulsion 1 | 1 . Utility 3 | 1 2 Weapon 1 | 1 . Parts Attached 9 | 5 4 Power 2 | 1 1 Engine 2 | 1 1 Core . | . . Reactor . | . . Propulsion 2 | 2 . Treads 2 | 2 . Leg . | . . Wheel . | . . Hover . | . . Flight . | . . Utility 3 | . 3 Device 1 | . 1 Storage 1 | . 1 Processor . | . . Hackware . | . . Protection 1 | . 1 Artifact . | . . Weapon 2 | 2 . Energy Gun . | . . Energy Cannon . | . . Ballistic Gun 2 | 2 . Ballistic Cannon . | . . Launcher . | . . Special Weapon . | . . Impact Weapon . | . . Slashing Weapon . | . . Piercing Weapon . | . . Special Melee Weapon . | . . Unidentified Prototypes . | . . Parts Lost . | . . Power . | . . Propulsion . | . . Utility . | . . Weapon . | . . Highest Loss Streak . | . . Average Slot Usage (%) 89 | . 89 Engine 13 | . 13 Treads 26 | . 26 Device 11 | . 11 Storage 1 | . 1 Protection 7 | . 7 Ballistic Gun 26 | . 26 Naked Turns . | . . Heaviest Build 14 | 8 14 Greatest Support 40 | 40 40 Greatest Overweight (x) . | . . Average Overweight (x) . | . . Largest Inventory Capacity 2 | 2 2 Average Capacity 2 | 2 2 Most Carried 2 | . 2 Average Carried . | . . Final Capacity 2 | 2 2 Final Carried 2 | . 2 Class Distribution -------------------- 100% | Mutant Dominant Class ---------------- Mutant | -10/Materials Resources | -11 -10 ----------- Run | Scr Mat Matter Collected 585 | 258 327 Remotely . | . . Salvage Created 746 | 64 682 Parts 39 | 2 37 Haulers Intercepted . | . . Recyclers Shooed 5 | . 5 Parts Field Recycled . | . . Retrieved Matter . | . . Parts Self-Destructed . | . . Prevented . | . . Kills | -11 -10 ------- Run | Scr Mat Combat Hostiles Destroyed 17 | . 17 Guns 17 | . 17 Classes Destroyed 4 | 1 3 Recycler 2 | 1 1 Watcher 1 | . 1 Swarmer 5 | . 5 Grunt 12 | . 12 Best Kill Streak 5 | 1 5 Combat Bots Only 4 | . 4 Max Kills in Single Turn 2 | 1 2 Gunslinging . | . . Exploded . | . . Melee . | . . Uniques/NPCs Destroyed . | . . Combat | -11 -10 -------- Run | Scr Mat Damage Taken 1043 | . 1043 Core 815 | . 815 Absorbed by Shields . | . . Redirected to Core 685 | . 685 Core Remaining (%) 100 | 100 . Volleys Fired 72 | 2 70 Largest 2 | 2 2 Hottest 40 | 40 40 Shots Fired 144 | 4 140 Gun 144 | 4 140 Cannon . | . . Launcher . | . . Special . | . . Kinetic 144 | 4 140 Thermal . | . . Explosive . | . . Electromagnetic . | . . Robot Hit Streak 19 | 4 19 Robot Miss Streak 4 | . 4 Penetration Max . | . . Secondary Targets 2 | . 2 Max Gunslinging Chain 1 | . 1 Shots Hit Robots 96 | 4 92 Core Hits 42 | 2 40 Critical Hits 2 | . 2 Critical Kills 1 | . 1 Critical Parts Destroyed 1 | . 1 Melee Attacks . | . . Impact . | . . Slashing . | . . Piercing . | . . Sneak Attacks . | . . Combat Hostiles . | . . Follow-up Attacks . | . . Damage Inflicted 1022 | 38 984 Guns 1017 | 38 979 Cannons . | . . Explosions . | . . Melee . | . . Ramming 5 | . 5 Kinetic 1017 | 38 979 Thermal . | . . Explosive . | . . Electromagnetic . | . . Impact . | . . Slashing . | . . Piercing . | . . Highest Corruption . | . . Average Corruption . | . . Corruption Purged . | . . Overload Shots . | . . Overflow Damage . | . . Projectiles . | . . Explosions . | . . Melee . | . . Knockbacks . | . . Impact . | . . Kinetic . | . . Secondary . | . . Self-Inflicted Damage . | . . Shots . | . . Rammed 3 | . 3 Targets Rammed 3 | . 3 Kicked . | . . Crushed . | . . Highest Temperature 6 | . 6 Average Temperature 4 | . 4 Received Heat Transfer 441 | . 441 Siege Activations . | . . Robots Corrupted . | . . Combat Hostiles . | . . Parts Fried . | . . Impact Corruptions . | . . Robots Melted . | . . Combat Hostiles . | . . Parts Melted . | . . Heat Transferred . | . . Parts Sabotaged . | . . Parts Stolen . | . . Parts Stripped . | . . Power Chain Reactions . | . . Missiles Intercepted . | . . Alert | -11 -10 ------- Run | Scr Mat Peak Influence 395 | 5 395 Average Influence 148 | 1 171 Maximum Alert Level 1 | . 1 Low Security (%) 68 | 100 63 Level 1 31 | . 36 Level 2 . | . . Level 3 . | . . Level 4 . | . . Level 5 . | . . High Security . | . . Max Security . | . . Squads Dispatched 7 | . 7 Investigation 6 | . 6 Extermination . | . . Reinforcement 1 | . 1 Assault . | . . Garrison . | . . Intercept . | . . Construction Impeded . | . . Haulers Reinforced . | . . Stealth | -11 -10 --------- Run | Scr Mat Distress Signals . | . . Communications Jammed . | . . Distress Signals . | . . Times Spotted 31 | . 31 Peak Tracking Total 7 | . 7 Tactical Retreats 5 | . 5 Traps | -11 -10 ------- Run | Scr Mat Traps Triggered 3 | . 3 Indirectly . | . . Trap Hack Attempts . | . . Triggered . | . . Disarmed . | . . Reprogrammed . | . . Reused . | . . Traps Extracted . | . . Installed . | . . Triggered . | . . Machines | -11 -10 ---------- Run | Scr Mat Machines Disabled . | . . Max in Single Turn . | . . Machines Sabotaged . | . . Garrisons Compromised . | . . Overloaded Fab Kills . | . . Fab Network Shutdowns . | . . Hacking | -11 -10 --------- Run | Scr Mat Machines Accessed 4 | . 4 Terminals 2 | . 2 Fabricators . | . . Repair Stations . | . . Recycling Units 2 | . 2 Scanalyzers . | . . Garrison Access . | . . Total Hacks 9 | . 9 Successful 4 | . 4 Failed 5 | . 5 Catastrophic 1 | . 1 Database Lockouts . | . . Manual 4 | . 4 Terminals 4 | . 4 Fabricators . | . . Repair Stations . | . . Recycling Units 5 | . 5 Scanalyzers . | . . Garrison Access . | . . Terminal Hacks 1 | . 1 Alert Level 1 | . 1 Fabricator Hacks . | . . Repair Station Hacks . | . . Recycling Unit Hacks 1 | . 1 Retrieve Components 1 | . 1 Scanalyzer . | . . Garrison Access Hacks . | . . Unauthorized Hacks 2 | . 2 Terminals . | . . Fabricators . | . . Repair Stations . | . . Recycling Units 2 | . 2 Tunnel 2 | . 2 Scanalyzers . | . . Garrison Access . | . . Data Cores Recovered . | . . Used . | . . Hacking Detections 4 | . 4 Full Trace Events 1 | . 1 Feedback Events . | . . Feedback Blocked . | . . Robot Schematics Acquired . | . . Robots Built . | . . Matter . | . . Time . | . . Total Robot Build Rating . | . . Part Schematics Acquired . | . . Parts Built . | . . Matter . | . . Time . | . . Total Part Build Rating . | . . Parts Repaired . | . . Time . | . . Parts Recycled . | . . Recycled Matter . | . . Retrieved Matter . | . . Retrieved Components 10 | . 10 Parts Scanalyzed . | . . Part Schematics Acquired . | . . Parts Damaged . | . . Bothacking | -11 -10 ------------ Run | Scr Mat Used RIF Installer . | . . Robots Hacked . | . . Non-combat . | . . Combat . | . . Robot Hacks Applied . | . . Relay Couplers Released . | . . Robots Rewired . | . . Allies Hacked . | . . Hacks Repelled . | . . Allies | -11 -10 -------- Run | Scr Mat Total Allies . | . . Largest Group . | . . Highest-Rated Group . | . . Highest-Rated Ally . | . . Total Orders . | . . Ally Attacks . | . . Total Damage . | . . Kills . | . . Allies Corrupted . | . . Allies Melted . | . . Intel | -11 -10 ------- Run | Scr Mat Robot Analysis Total . | . . Derelict Logs Recovered . | . . Drone Launches . | . . Drone Recoveries . | . . Exploration | -11 -10 ------------- Run | Scr Mat Turns Passed 964 | 126 838 Spaces Moved 415 | 70 345 Core 13 | 13 . Treads 402 | 57 345 Legs . | . . Wheels . | . . Hover . | . . Flight . | . . Fastest Speed 50 | 50 160 Average Speed 156 | 139 160 Slowest Speed 160 | 160 160 Overloaded Moves . | . . Propulsion Burnouts . | . . Robots Hopped . | . . Cave-ins Triggered . | . . Exploration Rate (%) 26 | 5 48 Regions Visited 1 Branch Regions . Pre-discovered Areas 2 | . 2 Known Exits Taken . | . . Unknown Exits Taken 1 | 1 . Scrap Searched . | . . Spaces Dug . | . . Terrain Destroyed . | . . Melee . | . . Projectile . | . . AOE . | . . Actions | -11 -10 --------- Run | Scr Mat Total 594 | 92 502 Wait 83 | 16 67 Move 414 | 69 345 Hop . | . . Pick Up 2 | . 2 Fast Attach 7 | 5 2 Attach 1 | . 1 Detach . | . . Swap 1 | . 1 Drop . | . . Fire 72 | 2 70 Melee . | . . Ram . | . . Kick . | . . Crush 3 | . 3 Escape Stasis . | . . Rewire . | . . Trap . | . . Miscellaneous 11 | . 11 Route ------- -11/Scrapyard -10/Materials (discovered 2 exits: [*Min x2]) History --------- Turn | Location | Event 1 | -11/Scrapyard | Upgraded with Propulsion slot (x1) 1 | -11/Scrapyard | Upgraded with Utility slot (x1) 1 | -11/Scrapyard | Upgraded with Weapon slot (x1) 11 | -11/Scrapyard | Discovered new exit (range 14) 127 | -11/Scrapyard | Entered Materials 304 | -10/Materials | Build established: Mutant 684 | -10/Materials | Discovered new exit (range 6) 713 | -10/Materials | Reached level 2 718 | -10/Materials | Core integrity fell below 50% 723 | -10/Materials | Discovered new exit (range 7) 804 | -10/Materials | Upgraded with Utility slot (x2) 878 | -10/Materials | Core integrity fell below 20% 965 | -10/Materials | Destroyed by G-34 Mercenary with Small Laser Last Messages --------------- 00866_ G-34 Mercenary destroyed. 00866_ R-06 Scavenger destroyed. 00869_ Acquired 68 matter. 00880_ S-10 Pest destroyed. 00881_ Acquired 28 matter. 00886_ S-10 Pest destroyed. 00886_ Switching to secondary target: G-34 Mercenary. 00892_ G-34 Mercenary destroyed. 00903_ Used Protomatter to restore core integrity (+54, depleted) 00923_ Connecting with Terminal... >>Alert(Check) Current Alert Level: 1-Z 00936_ Triggered Alarm Trap. 00936_ An alarm sounds. 00936_ ALERT: Alarm triggered, dispatching investigation squad. 00945_ Slammed into G-34 Mercenary. 00949_ G-34 Mercenary suffers critical hit. 00949_ G-34 Mercenary destroyed. 00955_ S-10 Pest suffers critical hit. 00955_ Destroyed Lgt. Assault Rifle. Map ----- +----------------------------------------------------+ | #% #????????????????????????????????? | | #????????????????????????????????? | | % ########????????????????????????????????? | | #??????????????????# #??????????????????? | | #????????????????? ??????????????????? | | #########????????? ????????????????????? | | % #""|"|""#???????? ?????????????????????? | | # " "|" #??????? #??????????????????????? | | # ####### #??????????????????????? | | #??????????????????????? | | < +??????????????????????? | | #??????????????????????? | | "" ##+########??????????????????????? | | ""######## """ #???????????????????????? | | ##??????# ="Y" #???????????????????????? | | ??????# =![ #############???????????? | | " ????# ![[= # #???????????? | | %" ???# = # #???????????? | | " ??# """ # """ ""#???????????? | | + ??# """ # """ / T"#???????????? | | # ??# """ *# """ ""#???????????? | | # ???# !%*# #???????????? | | # ????########+######+######???????????? | | "T" ###+????????????#=#???# #???????????????? | | """ ????????????????#r#####%! #???????????????? | | ???? ????????????????#*@**=g== #???????????????? | | ???????????????????????#k#####[ #???????????????? | | ???????????????????????#%#???# #???????????????? | | ???????????????????????+*#???# #???????????????? | | ???????????????????????###???# #???????????????? | | ?????????????????????????????# ??????????????? | | ?????????????????????????????# ????????????? | | ?????????????????????????????# ??????????? | | ?????????????????????????????##/##### #????????? | | ??????????????????????????????? ????? #????????? | | ??????????????????????????????? ?????? #????????? | | ???????????????????????????????" ???????#????????? | | ???????????????????????????????" ???????????????? | | ???????????????????????????????" ???????????????? | | ???????????????????????????????? ???????????????? | | ???????????????????????????????? ???????????????? | | ???????????????????????????????? ??????????????? | | ?????????????????????????????????##??????????????? | | ?????????????????????????????????????????????????? | | ?????????????????????????????????????????????????? | | ?????????????????????????????????????????????????? | | ?????????????????????????????????????????????????? | | | | | | | +----------------------------------------------------+ Best States ------------- Heat Dissipation 35 Energy Generation 10 Energy Capacity 250 Matter Stores 337 Matter Capacity 500 Sight Range 16 Terrain Scan Density 10 Utility Shielding 33 Evasion (%) 50 Recoil Reduction 2 Item Schematics ----------------- None Robot Schematics ------------------ None Fabricated ------------ Nothing Alien Tech Used ----------------- None Achievements -------------- None Challenges ------------ None RPGLIKE | -11 -10 --------- Run | Scr Mat Levels Raised 1 | . 1 XP Earned 5435 | 3000 2435 XP Spent 4150 | 2250 1900 Upgrades 7 | 5 2 Propulsion Slot 1 | 1 . Utility Slot 3 | 1 2 Weapon Slot 1 | 1 . Inventory Capacity 2 | 2 . Protomatter Created 114 | . 114 Integrity Restored 211 | . 211 Core 211 | . 211 Protomatter Decayed . | . . Game ------ Seed ArmoredRefinerySword Manual? 0 Play Time 00:12:08 Cumulative 1063.0 hours Start 2020.07.05 @ 16:55:27 End 2020.07.05 @ 17:04:01 Sessions 1 Manual Loads 0 Difficulty Rogue Special Mode Winter2019/RPGLIKE Game No. 650 Rogue 650 Adventurer 0 Explorer 0 Win Type - Total 18 Types 10/1/4/3/0/0/0 Lore% 92 Gallery% 93 Achievement% 81 Wizard Run 0 Options --------- ASCII 0 Keyboard 0 Movement Mouse Keybinds 0 Fullscreen 2 Font 24/Crisp Map View 76x50 Tactical HUD 1 Map Filters NONE Filters NONE Steam 1 RUN: 9e8d317f-13cb-4cf8-8b58-fbccb0d283f0